bitfinex/quotes_BTCUSD_20220304
["timestamp","ask_amount","ask_price","bid_price","bid_amount"]
[1646428263876,0.05858141,39484.0,39480.0,0.30519197]
[1646428264069,0.00018741,39484.0,39481.0,0.13527109]
[1646428264368,0.00018741,39484.0,39481.0,0.32544109]
[1646428264568,0.00018741,39484.0,39481.0,0.19017]
[1646428264768,0.063393,39485.0,39481.0,0.19017]
[1646428265268,0.00018742,39484.0,39481.0,0.19017]
[1646428265467,0.00018742,39484.0,39481.0,0.26477435]
[1646428266075,0.03163095,39489.0,39483.0,0.13799457]
[1646428266076,0.01323794,39489.0,39483.0,0.13799457]
[1646428266270,0.31620073,39494.0,39485.0,0.063379]
[1646428266470,0.45443994,39494.0,39490.0,0.07460435]
[1646428266669,0.31620073,39494.0,39490.0,0.12460435]
[1646428266867,0.31620073,39494.0,39490.0,0.26347028]
[1646428267270,0.31620073,39494.0,39490.0,0.37314186]
[1646428267469,0.31620073,39494.0,39490.0,0.43651758]
[1646428267716,0.00018741,39492.0,39490.0,0.43651758]
[1646428268318,0.00018741,39492.0,39490.0,0.55686767]
[1646428268517,0.30250615,39494.0,39490.0,0.55686767]
[1646428268721,0.30250615,39494.0,39490.0,0.43651758]
[1646428268921,0.00018741,39492.0,39490.0,0.43651758]
[1646428269721,0.30250615,39494.0,39490.0,0.43651758]
[1646428269920,0.00018741,39492.0,39490.0,0.59697088]
[1646428270323,0.00018741,39492.0,39491.0,1.4]
[1646428270527,0.00018741,39492.0,39491.0,1.42526]
[1646428270824,0.01497459,39504.0,39496.0,0.06336195]
[1646428270825,0.1532138,39504.0,39496.0,0.06336195]
[1646428271023,0.1532138,39504.0,39502.0,0.25752378]
[1646428271226,0.13842626,39503.0,39502.0,0.25752378]
[1646428271666,0.03148169,39503.0,39502.0,0.25752378]
[1646428271870,0.063361,39504.0,39502.0,0.58038955]
[1646428272068,0.00648898,39503.0,39502.0,0.58038955]
[1646428272266,0.063361,39504.0,39502.0,0.75896528]
[1646428272466,0.00648898,39503.0,39502.0,0.75896528]
[1646428272667,0.06354641,39504.0,39502.0,0.7049939]
[1646428272869,0.00532137,39503.0,39502.0,0.7049939]
[1646428273069,0.06354641,39504.0,39502.0,0.7049939]
[1646428273271,0.00532137,39503.0,39502.0,0.7302539]
[1646428273572,0.00532131,39503.0,39502.0,1.1569619]
[1646428273873,0.03035664,39515.0,39505.0,1.4]
[1646428274075,0.03035664,39515.0,39513.0,0.07460435]
[1646428274270,0.0047385,39514.0,39513.0,0.13793135]
[1646428274470,0.01516264,39524.0,39513.0,0.48793135]
[1646428274669,0.01516264,39524.0,39522.0,0.02526]
[1646428274872,0.02645421,39529.0,39524.0,0.02526]
[1646428275152,0.41,39531.0,39526.0,0.13791169]
[1646428275352,0.02644743,39536.0,39527.0,0.02526]
[1646428275558,0.00766624,39532.0,39527.0,0.32526]
[1646428275753,0.00765002,39528.0,39527.0,0.3]
[1646428275950,0.02644743,39536.0,39529.0,0.02526]
[1646428276155,0.00990024,39532.0,39530.0,0.25322166]
[1646428276351,0.00017361,39533.0,39530.0,0.25322166]
[1646428276352,0.00017361,39533.0,39531.0,0.42460435]
[1646428276553,0.00017361,39533.0,39531.0,0.41014182]
[1646428276850,0.00069433,39539.0,39533.0,0.7773]
[1646428277054,0.126594,39547.0,39532.0,1.7]
[1646428277055,0.46660326,39549.0,39539.0,0.02526]
[1646428277253,0.04751405,39550.0,39541.0,0.0632808]
[1646428277254,0.01634939,39550.0,39541.0,0.0632808]
[1646428277452,0.01293348,39556.0,39542.0,0.3]
[1646428277653,0.01293348,39556.0,39547.0,0.07460435]
[1646428277859,0.01293348,39556.0,39548.0,0.07460435]
[1646428278152,0.01293348,39556.0,39547.0,0.02526]
[1646428278351,0.01293348,39556.0,39552.0,0.07460435]
[1646428278553,0.01293348,39556.0,39552.0,0.12656]
[1646428278554,0.07623248,39555.0,39552.0,0.12656]
[1646428278867,0.01461273,39551.0,39539.0,0.253105]
[1646428279073,0.126605,39549.0,39539.0,0.253105]
[1646428279268,0.126605,39549.0,39530.0,0.86130954]
[1646428279269,0.121605,39549.0,39530.0,0.86130954]
[1646428279475,0.07539565,39544.0,39534.0,0.12662]
[1646428279870,0.07539565,39544.0,39520.0,0.4795]
[1646428279871,0.01196973,39539.0,39520.0,0.4795]
[1646428280072,0.01196973,39539.0,39522.0,0.3]
[1646428280073,0.01688344,39536.0,39522.0,0.3]
[1646428280271,0.01688344,39536.0,39520.0,0.4795]
[1646428280469,0.01244885,39532.0,39520.0,0.4795]
[1646428280669,0.01517173,39534.0,39526.0,0.126644]
[1646428280670,0.01545614,39528.0,39526.0,0.126644]
[1646428280866,0.01545614,39528.0,39526.0,0.189967]
[1646428281267,0.03007678,39528.0,39526.0,0.189967]
[1646428281670,0.03007678,39528.0,39526.0,0.126644]
[1646428281671,0.01545614,39528.0,39526.0,0.126644]
[1646428281867,0.01545614,39528.0,39525.0,0.126648]
[1646428282916,0.06215614,39528.0,39525.0,0.126648]
[1646428284322,0.06215614,39528.0,39525.0,0.189969]
[1646428284520,0.06215614,39528.0,39525.0,0.239969]
[1646428284718,0.0467,39528.0,39525.0,0.239969]
[1646428285120,0.01360017,39527.0,39525.0,0.176648]
[1646428285823,0.01360017,39527.0,39523.0,0.126652]
[1646428285824,0.0467,39526.0,39523.0,0.126652]
[1646428286024,0.063341,39523.0,39514.0,0.07460435]
[1646428286225,0.36174665,39522.0,39517.0,0.126677]
[1646428286672,0.28686885,39520.0,39517.0,0.126677]
[1646428286874,0.01387933,39518.0,39514.0,0.126678]
[1646428287076,0.0467,39517.0,39511.0,0.001]
[1646428287275,0.3,39516.0,39511.0,0.001]
[1646428287471,0.01475633,39513.0,39511.0,0.001]
[1646428287672,0.12209565,39512.0,39511.0,0.001]
[1646428287870,0.47209565,39512.0,39499.0,0.0011]
[1646428288072,0.27017829,39507.0,39499.0,0.0011]
[1646428288274,0.27017829,39507.0,39499.0,0.064472]
[1646428288275,0.05964828,39506.0,39499.0,0.064472]
[1646428288771,0.05964828,39506.0,39500.0,0.86335848]
[1646428288772,0.0467,39505.0,39500.0,0.86335848]
[1646428288970,0.05888943,39505.0,39500.0,0.06335848]
[1646428289170,0.05888943,39505.0,39503.0,0.14685671]
[1646428289370,0.05888943,39505.0,39501.0,0.41927387]
[1646428289971,0.05888943,39505.0,39501.0,0.126715]
[1646428290222,0.12225143,39505.0,39501.0,0.253429]
[1646428290424,0.12225143,39505.0,39502.0,0.126725]
[1646428291621,0.01349211,39504.0,39502.0,0.126725]
[1646428291821,0.0467,39503.0,39502.0,0.126725]
[1646428292922,0.0467,39503.0,39499.0,0.0011]
[1646428293522,0.0467,39503.0,39489.0,0.001]
[1646428293523,0.95,39499.0,39489.0,0.001]
[1646428293725,0.2344327,39493.0,39489.0,0.001]
[1646428293973,0.06177624,39492.0,39489.0,0.001]
[1646428294775,0.07420681,39491.0,39489.0,0.06439]
[1646428294971,0.0467,39490.0,39489.0,0.06439]
[1646428296273,0.0467,39490.0,39489.0,0.127776]
[1646428297924,0.0467,39490.0,39489.0,0.39871029]
[1646428298726,0.0467,39490.0,39489.0,0.127776]
[1646428303278,0.0467,39490.0,39489.0,0.25238035]
[1646428303472,0.005,39493.0,39490.0,1.526725]
[1646428303672,0.0467,39496.0,39490.0,1.59008674]
[1646428303872,0.01381158,39495.0,39492.0,0.23659065]
[1646428304073,0.0467,39496.0,39492.0,0.42668465]
[1646428304274,0.01451745,39501.0,39494.0,0.07460435]
[1646428304673,0.063368,39498.0,39496.0,0.063367]
[1646428304875,0.06195386,39497.0,39496.0,0.063367]
[1646428308653,0.16195386,39497.0,39496.0,0.063367]
[1646428308868,0.16195386,39497.0,39493.0,0.063384]
[1646428310868,0.06195386,39497.0,39495.0,0.06337]
[1646428313127,0.06195386,39497.0,39495.0,0.18464749]
[1646428313328,0.06195386,39497.0,39495.0,0.06337]
[1646428314929,0.06195386,39497.0,39493.0,0.063384]
[1646428316031,0.06195386,39497.0,39490.0,0.063387]
[1646428316231,0.3,39496.0,39490.0,0.063387]
[1646428316468,0.063386,39494.0,39490.0,0.063387]
[1646428316673,0.063386,39494.0,39486.0,0.0011]
[1646428316674,0.12577953,39491.0,39486.0,0.0011]
[1646428316870,0.0134762,39492.0,39486.0,0.0011]
[1646428316871,1.24977953,39490.0,39486.0,0.0011]
[1646428317070,1.83357953,39490.0,39486.0,0.0011]
[1646428317271,0.01384198,39487.0,39474.0,0.5]
[1646428317469,0.0154121,39483.0,39474.0,0.5]
[1646428317670,0.0467,39482.0,39474.0,0.5]
[1646428317871,0.0467,39482.0,39473.0,0.002]
[1646428317872,1.45,39481.0,39473.0,0.002]
[1646428318076,1.45,39481.0,39470.0,0.001]
[1646428318078,0.0136986,39477.0,39470.0,0.001]
[1646428318270,0.7773,39476.0,39470.0,0.001]
[1646428318569,0.7773,39476.0,39462.0,0.5031]
[1646428318570,0.063439,39471.0,39462.0,0.5031]
[1646428318772,0.01594083,39469.0,39462.0,0.5031]
[1646428318989,1.124,39470.0,39462.0,0.5031]
[1646428318990,0.01491458,39465.0,39462.0,0.5031]
[1646428319169,0.0467,39464.0,39462.0,0.0031]
[1646428323719,0.03138837,39463.0,39462.0,0.0031]
[1646428323969,0.07808797,39463.0,39462.0,0.0031]
[1646428324475,0.10458312,39463.0,39462.0,0.0031]
[1646428327920,0.10930799,39463.0,39462.0,0.0031]
[1646428328121,0.40930799,39463.0,39462.0,0.0031]
[1646428328321,0.50930799,39463.0,39462.0,0.0031]
[1646428328526,0.55930799,39463.0,39461.0,0.0011]
[1646428328721,0.67692957,39462.0,39461.0,0.0011]
[1646428328921,0.67692957,39462.0,39458.0,0.001]
[1646428328922,0.72362957,39462.0,39458.0,0.001]
[1646428329122,0.663453,39461.0,39458.0,0.001]
[1646428329324,0.663453,39461.0,39452.0,0.002]
[1646428329325,1.60117518,39459.0,39452.0,0.002]
[1646428329524,1.60117518,39459.0,39449.0,0.00533909]
[1646428329525,1.3611,39453.0,39448.0,0.002]
[1646428329723,0.12577953,39449.0,39448.0,0.002]
[1646428329923,0.12577953,39449.0,39440.0,0.0021]
[1646428329924,0.25392,39448.0,39440.0,0.0021]
[1646428330123,0.01501285,39446.0,39440.0,0.0021]
[1646428330326,0.0467,39445.0,39440.0,0.0021]
[1646428330526,0.3,39444.0,39440.0,0.0021]
[1646428330725,0.01562808,39442.0,39440.0,0.0021]
[1646428331127,0.0467,39441.0,39440.0,0.0021]
[1646428331772,0.1467,39441.0,39440.0,0.0021]
[1646428335421,0.1781063,39441.0,39440.0,0.0021]
[1646428335822,0.1781059,39441.0,39440.0,0.0021]
[1646428336825,0.2781059,39441.0,39440.0,0.07670435]
[1646428337024,0.1781059,39441.0,39440.0,0.07670435]
[1646428337427,0.0855,39441.0,39440.0,0.32356325]
[1646428337625,0.005,39447.0,39441.0,1.58057743]
[1646428337827,0.01156254,39450.0,39446.0,0.07460435]
[1646428338024,0.01156254,39450.0,39449.0,0.07460435]
[1646428338225,0.0151686,39450.0,39449.0,0.07460435]
[1646428338425,0.0101686,39450.0,39449.0,0.07460435]
[1646428338626,0.03212174,39451.0,39449.0,0.07460435]
[1646428338877,0.03212174,39451.0,39450.0,0.3]
[1646428338878,0.004,39451.0,39450.0,0.3]
[1646428339072,0.14276468,39459.0,39450.0,0.3]
[1646428339073,0.01587468,39459.0,39451.0,1.4]
[1646428339273,0.01587468,39459.0,39452.0,0.55374]
[1646428339676,0.01587468,39459.0,39455.0,0.26537896]
[1646428339873,0.01587468,39459.0,39458.0,0.07460435]
[1646428340073,0.13157368,39459.0,39458.0,0.07460435]
[1646428340874,0.19501268,39459.0,39458.0,0.07460435]
[1646428341485,0.01878167,39461.0,39459.0,1.4]
[1646428341486,0.005,39461.0,39459.0,1.4]
[1646428341679,0.005,39461.0,39460.0,0.37460435]
[1646428341873,0.01315962,39471.0,39460.0,0.37460435]
[1646428341874,0.01315962,39471.0,39462.0,0.063416]
[1646428342074,0.03846972,39474.0,39468.0,0.07460435]
[1646428342075,0.126841,39474.0,39468.0,0.07460435]
[1646428342273,0.11199953,39470.0,39464.0,0.3]
[1646428342474,0.07773695,39475.0,39464.0,0.3]
[1646428342475,0.01432295,39475.0,39469.0,0.07460435]
[1646428342722,0.01245081,39469.0,39465.0,0.27750043]
[1646428342921,0.01245081,39469.0,39465.0,0.05]
[1646428343123,0.27030708,39470.0,39466.0,0.07460435]
[1646428343320,0.01596293,39469.0,39466.0,0.07460435]
[1646428343722,0.11596293,39469.0,39463.0,0.05]
[1646428343921,0.11596293,39469.0,39467.0,0.126828]
[1646428344521,0.17938793,39469.0,39467.0,0.126828]
[1646428344925,0.17938793,39469.0,39466.0,0.126827]
[1646428345322,0.17938793,39469.0,39465.0,0.126849]
[1646428345323,0.17938793,39469.0,39465.0,0.176849]
[1646428346022,0.17938793,39469.0,39466.0,0.063426]
[1646428346672,0.17938793,39469.0,39465.0,0.126849]
[1646428346871,0.05142487,39468.0,39452.0,0.489182]
[1646428347075,0.063449,39466.0,39452.0,0.489182]
[1646428347268,0.063449,39466.0,39460.0,9.179e-05]
[1646428347269,0.06115454,39465.0,39460.0,9.179e-05]
[1646428347470,0.126887,39464.0,39460.0,9.179e-05]
[1646428347669,0.36127042,39463.0,39460.0,9.179e-05]
[1646428347870,0.12660915,39461.0,39460.0,9.179e-05]
[1646428348070,0.17330915,39461.0,39452.0,0.380571]
[1646428348370,0.23357697,39457.0,39454.0,9.18e-05]
[1646428348569,0.05377113,39456.0,39454.0,9.18e-05]
[1646428348769,0.18066913,39456.0,39454.0,9.18e-05]
[1646428349172,0.18066913,39456.0,39454.0,0.07469615]
[1646428349472,0.063449,39455.0,39454.0,0.07460435]
[1646428349673,0.01262913,39454.0,39453.0,0.063444]
[1646428349871,0.01262913,39454.0,39453.0,0.07460435]
[1646428349872,0.05932913,39454.0,39453.0,0.07460435]
[1646428350431,0.12277513,39454.0,39453.0,0.07460435]
[1646428351628,0.01512957,39460.0,39452.0,0.41668277]
[1646428351831,0.01200079,39454.0,39453.0,0.07460435]
[1646428352029,0.05870079,39454.0,39453.0,0.07460435]
[1646428352227,0.05870079,39454.0,39452.0,0.253778]
[1646428352428,0.18559979,39454.0,39453.0,0.07460435]
[1646428352628,0.18559979,39454.0,39452.0,0.253778]
[1646428352930,0.12214579,39454.0,39452.0,0.253778]
[1646428353330,0.12214579,39454.0,39451.0,0.063447]
[1646428355871,0.12214579,39454.0,39449.0,0.12708828]
[1646428356072,0.01398694,39458.0,39449.0,0.12708828]
[1646428356272,0.01539349,39452.0,39449.0,0.00019128]
[1646428356477,0.0467,39451.0,39449.0,0.00019128]
[1646428356676,1.4,39448.0,39432.0,0.0031]
[1646428356880,2.3297,39449.0,39431.0,0.5]
[1646428356881,0.05274706,39434.0,39431.0,0.5]
[1646428357074,0.7,39432.0,39416.0,0.00709544]
[1646428357275,0.14539104,39427.0,39416.0,0.002]
[1646428357475,0.84011532,39426.0,39414.0,0.061508]
[1646428357734,0.84011532,39426.0,39410.0,0.4092]
[1646428357735,1.16133783,39425.0,39410.0,0.4092]
[1646428357929,1.124,39424.0,39410.0,0.4092]
[1646428358129,0.01214846,39422.0,39410.0,0.4092]
[1646428358331,0.7773,39420.0,39410.0,0.4092]
[1646428358531,0.01286002,39417.0,39410.0,0.4092]
[1646428358731,0.7773,39415.0,39410.0,0.4092]
[1646428358943,0.0467,39416.0,39396.0,0.127043]
[1646428358944,0.79300124,39411.0,39396.0,0.127043]
[1646428359144,1.00020999,39412.0,39375.0,0.20516141]
[1646428359145,0.25,39394.0,39375.0,0.20516141]
[1646428359333,0.25,39394.0,39365.0,0.4479]
[1646428359334,0.14490456,39389.0,39356.0,0.44403826]
[1646428359540,0.04398191,39367.0,39364.0,0.00509544]
[1646428359736,0.0467,39367.0,39356.0,0.25845403]
[1646428359933,0.64659226,39367.0,39366.0,0.12742257]
[1646428360137,0.127224,39364.0,39356.0,0.25335859]
[1646428360336,0.127224,39364.0,39358.0,0.13914695]
[1646428360337,0.06103003,39363.0,39358.0,0.13914695]
[1646428360533,0.27463497,39360.0,39356.0,0.05]
[1646428360735,0.0467,39359.0,39356.0,0.05]
[1646428360933,0.0467,39359.0,39358.0,0.00509544]
[1646428361133,0.0467,39359.0,39356.0,0.04338681]
[1646428361375,0.0467,39359.0,39349.0,0.28099453]
[1646428361376,0.0457,39359.0,39352.0,0.15]
[1646428361580,0.00384,39365.0,39356.0,0.07073856]
[1646428361776,0.47265656,39378.0,39353.0,0.51983414]
[1646428361777,0.20737063,39381.0,39364.0,1.4]
[1646428361976,0.5,39377.0,39373.0,0.0011]
[1646428362179,0.0467,39376.0,39373.0,0.0011]
[1646428362377,0.0467,39376.0,39373.0,0.15]
[1646428362577,0.0467,39376.0,39374.0,0.15244074]
[1646428362775,0.0467,39376.0,39374.0,0.3565153]
[1646428362974,0.0467,39376.0,39374.0,0.20407456]
[1646428363274,0.00396,39382.0,39375.0,0.15]
[1646428363476,0.00396,39382.0,39374.0,0.20407456]
[1646428363477,0.05756786,39381.0,39374.0,0.20407456]
[1646428363675,0.01293885,39380.0,39371.0,0.00017968]
[1646428363878,0.0467,39381.0,39380.0,0.98706115]
[1646428364075,0.41481579,39381.0,39380.0,0.98706115]
[1646428364277,0.41481579,39381.0,39380.0,0.00956696]
[1646428364475,0.4695219,39381.0,39380.0,0.00956696]
[1646428364679,0.4695219,39381.0,39374.0,0.00017966]
[1646428364680,1.4,39380.0,39374.0,0.00017966]
[1646428364881,0.15,39378.0,39374.0,0.00017966]
[1646428365140,0.01390418,39359.0,39356.0,0.4718]
[1646428365429,0.063607,39358.0,39356.0,0.4718]
[1646428365631,0.063607,39358.0,39347.0,0.15]
[1646428365829,0.0467,39360.0,39357.0,0.24603545]
[1646428366028,0.0467,39360.0,39358.0,0.3]
[1646428366230,0.127191,39365.0,39358.0,0.1611779]
[1646428366231,0.05,39365.0,39358.0,0.1611779]
[1646428366531,0.0517,39364.0,39355.0,0.063591]
[1646428366730,0.0517,39364.0,39355.0,0.063183]
[1646428367333,0.0517,39364.0,39360.0,0.29081684]
[1646428367736,0.0467,39372.0,39361.0,1.7]
[1646428367935,0.5,39377.0,39367.0,0.15]
[1646428367936,0.0467,39377.0,39367.0,0.15]
[1646428368135,0.0467,39377.0,39368.0,0.36356062]
[1646428368335,0.00402,39385.0,39368.0,0.36356062]
[1646428368336,0.0467,39385.0,39378.0,0.15540974]
[1646428368534,0.0467,39385.0,39375.0,0.30760045]
[1646428368535,0.10376135,39381.0,39375.0,0.30760045]
[1646428368734,0.10372046,39377.0,39375.0,0.35760045]
[1646428368972,0.001,39378.0,39375.0,0.35760045]
[1646428369472,0.001,39378.0,39374.0,0.36364355]
[1646428369473,0.001,39378.0,39376.0,0.06356]
[1646428369673,0.001,39378.0,39374.0,9.028e-05]
[1646428369674,0.04942682,39375.0,39374.0,9.028e-05]
[1646428369873,0.04942682,39375.0,39366.0,0.15]
[1646428370079,0.04942682,39375.0,39366.0,0.2]
[1646428370373,0.04942682,39375.0,39373.0,0.28553372]
[1646428370577,0.24843974,39374.0,39373.0,0.00015047]
[1646428371074,0.24843974,39374.0,39368.0,0.11660656]
[1646428371274,0.24843974,39374.0,39368.0,0.16660656]
[1646428371472,0.04942682,39375.0,39370.0,0.00015048]
[1646428372272,0.04942682,39375.0,39370.0,0.063566]
[1646428372475,0.04942682,39375.0,39373.0,0.32062247]
[1646428372722,0.04942682,39375.0,39373.0,0.05]
[1646428373119,0.04942682,39375.0,39370.0,0.113566]
[1646428373317,0.04942682,39375.0,39370.0,0.063566]
[1646428373717,0.04942682,39375.0,39370.0,0.34975511]
[1646428374323,0.03799585,39383.0,39370.0,0.34975511]
[1646428374519,0.03799585,39383.0,39373.0,0.06355408]
[1646428374718,0.01901585,39383.0,39374.0,0.088816]
[1646428374920,0.29768421,39392.0,39377.0,0.17526]
[1646428374921,0.16673721,39392.0,39377.0,0.17526]
[1646428375122,0.16673721,39392.0,39384.0,0.28244548]
[1646428375323,0.38831511,39393.0,39384.0,0.05]
[1646428375619,0.01419954,39393.0,39384.0,0.05]
[1646428375819,0.01419954,39393.0,39379.0,0.02526]
[1646428376020,0.01419954,39393.0,39387.0,0.22244669]
[1646428376375,0.29478149,39389.0,39387.0,0.27244669]
[1646428376571,0.30641519,39389.0,39387.0,0.27244669]
[1646428376872,0.01419954,39393.0,39387.0,0.27244669]
[1646428376873,0.01445008,39392.0,39387.0,0.27244669]
[1646428377675,0.01419954,39393.0,39387.0,0.27244669]
[1646428377877,0.01255795,39392.0,39387.0,0.27244669]
[1646428378278,0.01255795,39392.0,39389.0,0.063538]
[1646428378478,0.02867259,39397.0,39389.0,0.063538]
[1646428378782,0.60585435,39406.0,39400.0,0.98213534]
[1646428378783,0.01375414,39405.0,39400.0,0.98213534]
[1646428378978,0.11199953,39401.0,39400.0,0.01003383]
[1646428379577,0.11199953,39401.0,39399.0,0.2177182]
[1646428379778,0.11199953,39400.0,39399.0,0.063527]
[1646428379979,0.0162723,39399.0,39397.0,0.00015038]
[1646428380229,0.0162723,39399.0,39397.0,3.8e-07]
[1646428380230,0.15869953,39398.0,39397.0,3.8e-07]
[1646428380435,0.1634053,39398.0,39397.0,3.8e-07]
[1646428380627,0.1634053,39398.0,39393.0,9.024e-05]
[1646428380628,0.1368178,39395.0,39393.0,9.024e-05]
[1646428380827,0.28248444,39383.0,39375.0,0.40387662]
[1646428381027,0.3,39393.0,39375.0,0.40387662]
[1646428381228,0.24651247,39372.0,39371.0,0.583924]
[1646428381428,0.24651247,39372.0,39371.0,0.33207196]
[1646428381628,0.24651247,39372.0,39371.0,0.38207196]
[1646428381828,0.24651247,39372.0,39371.0,0.54906522]
[1646428382031,0.23987095,39390.0,39383.0,0.32388895]
[1646428382032,0.11206283,39390.0,39383.0,0.32388895]
[1646428382230,0.11206283,39390.0,39383.0,0.05]
[1646428382631,0.11206283,39390.0,39375.0,0.1270943]
[1646428382831,0.005,39392.0,39378.0,0.02526]
[1646428383036,0.005,39392.0,39388.0,0.20567934]
[1646428383231,0.005,39392.0,39384.0,0.127092]
[1646428383434,0.063548,39391.0,39384.0,0.063549]
[1646428383876,0.063548,39391.0,39384.0,0.113549]
[1646428384277,0.063548,39391.0,39388.0,0.2173743]
[1646428384478,0.063548,39391.0,39388.0,0.2809153]
[1646428384679,0.68758988,39395.0,39389.0,0.063541]
[1646428384878,0.1,39394.0,39389.0,0.063541]
[1646428385078,0.1,39394.0,39389.0,0.053541]
[1646428385581,0.1,39394.0,39389.0,0.103541]
[1646428385979,0.05139534,39398.0,39390.0,0.127066]
[1646428386179,0.00139534,39398.0,39390.0,0.127066]
[1646428386681,0.01418434,39403.0,39393.0,0.127044]
[1646428386682,0.063526,39402.0,39393.0,0.127044]
[1646428386882,0.063526,39402.0,39399.0,0.20894691]
[1646428387082,0.063526,39402.0,39395.0,0.27083949]
[1646428387083,0.26697329,39398.0,39395.0,0.27083949]
[1646428387280,0.26697329,39398.0,39395.0,0.127043]
[1646428387723,0.26697329,39398.0,39396.0,0.127043]
[1646428388322,0.26697329,39398.0,39397.0,0.42767808]
[1646428388525,0.26697329,39398.0,39397.0,0.26695604]
[1646428388723,0.26697329,39398.0,39397.0,0.31695604]
[1646428388926,0.26697329,39398.0,39397.0,0.05]
[1646428389124,0.01233752,39397.0,39393.0,0.00014099]
[1646428389324,0.01360609,39396.0,39393.0,0.00014099]
[1646428389524,0.01147457,39394.0,39393.0,0.00014099]
[1646428389723,0.08528156,39386.0,39382.0,0.3]
[1646428389924,0.08528156,39386.0,39382.0,0.11530159]
[1646428390126,0.08028156,39386.0,39382.0,0.11530159]
[1646428390523,0.08028156,39386.0,39383.0,0.127066]
[1646428390726,0.08028156,39386.0,39383.0,0.27868169]
[1646428390923,0.08028156,39386.0,39384.0,0.26025514]
[1646428391875,0.08028156,39386.0,39384.0,0.32378831]
[1646428393773,0.006,39392.0,39386.0,0.19058375]
[1646428393973,0.1,39396.0,39388.0,0.127058]
[1646428394174,0.01560713,39393.0,39388.0,0.127058]
[1646428394574,0.27380662,39396.0,39388.0,0.127058]
[1646428394575,0.1,39395.0,39388.0,0.127058]
[1646428394776,0.27380662,39396.0,39394.0,0.23402457]
[1646428394777,0.28700133,39396.0,39394.0,0.23402457]
[1646428394979,0.26697329,39398.0,39394.0,0.23402457]
[1646428395248,0.26697329,39398.0,39395.0,0.19054]
[1646428395445,0.26697329,39398.0,39395.0,0.2158]
[1646428395646,0.26697329,39398.0,39395.0,0.40631567]
[1646428395845,0.26697329,39398.0,39397.0,0.02526]
[1646428396049,0.26417329,39398.0,39397.0,0.02526]
[1646428397145,0.26417329,39398.0,39397.0,0.14012242]
[1646428397945,0.26417329,39398.0,39396.0,0.06351439]
[1646428398890,0.26417329,39398.0,39393.0,0.063517]
[1646428398891,0.29215765,39398.0,39393.0,0.063517]
[1646428399083,0.2914814,39398.0,39393.0,0.063517]
[1646428399279,0.27698452,39398.0,39394.0,0.063526]
[1646428399480,0.01320679,39397.0,39394.0,0.063526]
[1646428399680,0.08282778,39391.0,39389.0,6.882e-05]
[1646428399879,0.08282778,39391.0,39388.0,0.1270626]
[1646428400480,0.08282778,39391.0,39389.0,0.12705232]
[1646428400681,0.08282778,39391.0,39390.0,0.13789411]
[1646428400881,0.08282778,39391.0,39389.0,0.12705232]
[1646428401079,0.08282778,39391.0,39386.0,0.66329829]
[1646428401290,0.08282778,39391.0,39387.0,0.02526]
[1646428401481,0.08282778,39391.0,39387.0,0.02537311]
[1646428401681,0.08282778,39391.0,39387.0,0.02037311]
[1646428401980,0.08282778,39391.0,39388.0,0.12392525]
[1646428402180,0.08282778,39391.0,39389.0,0.063527]
[1646428402381,0.08282778,39391.0,39389.0,0.12705232]
[1646428403244,0.08282778,39391.0,39390.0,0.05]
[1646428405246,0.2070828,39396.0,39390.0,1.45]
[1646428405646,0.2070828,39397.0,39391.0,0.27116003]
[1646428405847,0.2070828,39397.0,39393.0,0.06351594]
[1646428406050,0.2070828,39397.0,39393.0,0.25405694]
[1646428406249,0.2070828,39397.0,39393.0,0.27931694]
[1646428406479,0.2070828,39397.0,39393.0,0.25405694]
[1646428406975,0.2070828,39396.0,39393.0,0.25405694]
[1646428407578,0.2070828,39397.0,39393.0,0.25405694]
[1646428407880,0.26417329,39398.0,39393.0,0.25405694]
[1646428407881,0.2070828,39396.0,39393.0,0.25405694]
[1646428408481,0.2070828,39396.0,39393.0,0.190541]
[1646428408482,0.2070828,39394.0,39393.0,0.190541]
[1646428408680,0.2588535,39396.0,39393.0,0.190541]
[1646428408880,0.2588535,39394.0,39393.0,0.190541]
[1646428409378,0.27798524,39394.0,39393.0,0.190541]
[1646428409580,0.27798524,39394.0,39392.0,0.063516]
[1646428409781,0.27798524,39394.0,39387.0,0.001]
[1646428409782,0.07986827,39390.0,39387.0,0.001]
[1646428409982,0.33955526,39390.0,39382.0,0.06354443]
[1646428410226,0.33955526,39390.0,39383.0,0.127088]
[1646428410227,0.20774709,39387.0,39383.0,0.127088]
[1646428410628,0.51172453,39387.0,39383.0,0.127088]
[1646428410826,0.20774709,39387.0,39385.0,0.127079]
[1646428411027,0.20774709,39387.0,39385.0,0.1906185]
[1646428411226,0.20774709,39388.0,39385.0,0.1906185]
[1646428411626,0.20774709,39388.0,39386.0,0.15395372]
[1646428411830,0.33955526,39390.0,39387.0,0.26524094]
[1646428411831,0.20774709,39389.0,39387.0,0.26524094]
[1646428412027,0.20774709,39389.0,39387.0,0.39229804]
[1646428412229,0.07986827,39390.0,39387.0,0.39229804]
[1646428412230,0.33955526,39390.0,39387.0,0.39229804]
[1646428412426,0.33955526,39390.0,39387.0,0.45082404]
[1646428413230,0.20783491,39389.0,39387.0,0.53961304]
[1646428413427,0.07986827,39390.0,39387.0,0.53961304]
[1646428413428,0.28770318,39390.0,39387.0,0.53961304]
[1646428413867,0.25968699,39392.0,39388.0,1.615817]
[1646428414169,0.25968699,39393.0,39389.0,0.43277557]
[1646428414373,0.25968699,39393.0,39391.0,0.127033]
[1646428414569,0.25968699,39394.0,39391.0,0.127033]
[1646428414971,0.26417329,39398.0,39391.0,0.127033]
[1646428414972,0.25968699,39395.0,39391.0,0.127033]
[1646428415571,0.25968699,39395.0,39392.0,0.14771754]
[1646428415769,0.25968699,39395.0,39392.0,0.33825654]
[1646428415970,0.25968699,39396.0,39392.0,0.33825654]
[1646428416572,0.25968699,39395.0,39393.0,0.27551457]
[1646428416770,0.25968699,39394.0,39393.0,0.27551457]
[1646428419125,0.3106242,39395.0,39393.0,0.27551457]
[1646428419823,0.3106242,39395.0,39393.0,0.25649334]
[1646428421383,0.3106242,39395.0,39393.0,0.05]
[1646428421578,0.25983033,39394.0,39393.0,0.05]
[1646428421879,0.3106242,39396.0,39393.0,0.05]
[1646428423480,0.57479749,39398.0,39395.0,0.35390308]
[1646428423786,0.26417329,39398.0,39397.0,0.23083393]